bitfinex-derivatives/quotes_SOLF0:USTF0_20250224
["timestamp","ask_amount","ask_price","bid_price","bid_amount"]
[1740372437052,111.75189807,159.81,159.8,41.66325248]
[1740372437349,0.34517119,159.83,159.82,6.2569]
[1740372437847,0.34517119,159.83,159.81,0.04132671]
[1740372439152,0.34517119,159.83,159.82,75.69548674]
[1740372440151,0.34517119,159.83,159.82,81.95238674]
[1740372441247,7.7218,159.91,159.82,296.72145757]
[1740372441448,6.2538,159.9,159.82,296.72145757]
[1740372441651,71.38281285,159.91,159.85,0.04207986]
[1740372442251,6.2553,159.86,159.85,0.04207986]
[1740372442851,6.2557,159.85,159.84,84.78073668]
[1740372443050,6.2557,159.85,159.84,66.88873668]
[1740372443253,6.2569,159.82,159.81,171.12072781]
[1740372444356,6.2569,159.82,159.81,44.8478809]
[1740372444653,6.2569,159.82,159.81,12.40016199]
[1740372444850,0.04145497,159.83,159.8,61.41043337]
[1740372445151,6.2573,159.81,159.8,39.03803337]
[1740372445355,6.2573,159.81,159.8,8.18253337]
[1740372445558,6.2573,159.81,159.8,3.337e-05]
[1740372446759,67.44311285,159.82,159.79,0.0477616]
[1740372447762,191.0,159.81,159.73,8.5336401]
[1740372448052,67.44311285,159.79,159.73,8.5336401]
[1740372448457,67.44311285,159.79,159.7,6.2615]
[1740372448653,67.44311285,159.76,159.68,3.8992]
[1740372448953,67.48393889,159.76,159.73,0.04456158]
[1740372449157,0.04082604,159.76,159.74,6.26]
[1740372449358,0.04082604,159.76,159.73,0.04456158]
[1740372449562,77.32311285,159.85,159.73,0.04456158]
[1740372449756,67.44311285,159.82,159.69,67.44311285]
[1740372449953,67.44311285,159.82,159.68,3.8992]
[1740372450157,67.44311285,159.82,159.72,6.2607]
[1740372450353,67.44311285,159.82,159.68,3.8992]
[1740372450552,67.44311285,159.84,159.75,6.46550236]
[1740372450553,67.44311285,159.76,159.75,6.46550236]
[1740372450756,77.32311285,159.76,159.7,171.12072781]
[1740372450956,52.40913369,159.72,159.7,171.12072781]
[1740372451159,67.44311285,159.75,159.7,171.12072781]
[1740372451462,9.88,159.76,159.7,171.12072781]
[1740372452058,0.04417869,159.75,159.71,0.0429934]
[1740372452456,0.04417869,159.75,159.72,6.2605]
[1740372452659,0.04417869,159.75,159.71,0.0429934]
[1740372453467,0.04417869,159.75,159.72,6.2605]
[1740372454066,0.04417869,159.75,159.71,7.3040934]
[1740372454367,0.04417869,159.75,159.71,1.0429934]
[1740372455666,67.44311285,159.78,159.71,1.0429934]
[1740372456065,67.44311285,159.78,159.72,6.2605]
[1740372456264,67.44311285,159.81,159.71,1.0429934]
[1740372456466,9.88,159.83,159.72,11.2258]
[1740372456668,9.88,159.82,159.72,11.2258]
[1740372456869,0.04327512,159.79,159.76,0.04237937]
[1740372457170,67.44311285,159.78,159.76,0.04237937]
[1740372457371,67.44311285,159.78,159.71,1.0]
[1740372457668,67.44311285,159.75,159.71,1.0]
[1740372457868,67.44311285,159.72,159.71,1.0]
[1740372458261,67.44311285,159.72,159.64,13.9735]
[1740372458466,67.44311285,159.72,159.64,7.7099]
[1740372458670,0.04520806,159.7,159.66,0.04243996]
[1740372459265,67.44311285,159.69,159.66,0.04243996]
[1740372460070,67.44311285,159.69,159.61,462.03707644]
[1740372460369,67.44311285,159.65,159.51,231.34311285]
[1740372460563,9.88,159.64,159.51,163.9]
[1740372460762,9.88,159.64,159.57,6.2667]
[1740372461165,0.04054917,159.62,159.59,0.04443765]
[1740372461874,67.48366202,159.62,159.59,0.04443765]
[1740372462472,67.48366202,159.62,159.51,163.9]
[1740372462673,67.44311285,159.59,159.51,163.9]
[1740372462972,67.44311285,159.56,159.48,11.3937]
[1740372463167,67.44311285,159.56,159.42,67.44311285]
[1740372463368,67.44311285,159.56,159.5,6.2693]
[1740372463875,0.0411491,159.55,159.51,0.0411807]
[1740372464069,67.44311285,159.56,159.49,6.2695]
[1740372464273,67.44311285,159.56,159.42,67.44311285]
[1740372464469,67.44311285,159.56,159.51,0.04808428]
[1740372464674,67.44311285,159.56,159.42,67.44311285]
[1740372464675,0.04139203,159.51,159.47,0.04640599]
[1740372464876,9.88,159.55,159.42,67.44311285]
[1740372465169,0.04641403,159.51,159.47,0.04304732]
[1740372466777,0.04641403,159.51,159.5,6.2694]
[1740372467171,9.88,159.55,159.48,3.6201]
[1740372467475,77.32311285,159.6,159.48,3.6201]
[1740372467774,67.44311285,159.6,159.48,3.6201]
[1740372467976,68.50941654,159.62,159.48,71.06321285]
[1740372468370,0.04197209,159.57,159.53,0.04357701]
[1740372468582,0.04197209,159.57,159.48,3.6201]
[1740372468774,0.04197209,159.57,159.55,6.2671]
[1740372469175,0.04197209,159.57,159.53,0.04708558]
[1740372470276,67.48508494,159.57,159.53,0.04708558]
[1740372472181,67.44311285,159.54,159.53,0.04708558]
[1740372472683,67.44311285,159.54,159.47,6.2705]
[1740372473072,67.44311285,159.54,159.43,3.5977]
[1740372473277,67.44311285,159.51,159.43,3.5977]
[1740372473680,67.44311285,159.51,159.45,0.04336895]
[1740372473876,0.04385275,159.49,159.45,0.04336895]
[1740372474984,0.04385275,159.49,159.45,6.31446895]
[1740372475577,0.04385275,159.49,159.48,6.2702]
[1740372475781,200.88,159.56,159.45,0.04336895]
[1740372475981,9.88,159.56,159.42,231.52311285]
[1740372476384,67.44311285,159.57,159.51,6.2689]
[1740372476877,0.04402761,159.56,159.52,0.04747786]
[1740372477083,68.50941654,159.59,159.45,67.44311285]
[1740372477280,7.312e-05,159.51,159.47,0.04507212]
[1740372477486,68.50941654,159.59,159.55,6.2671]
[1740372478487,68.55524028,159.59,159.55,6.30732572]
[1740372478889,0.04582374,159.59,159.55,6.30732572]
[1740372479082,0.04582374,159.59,159.55,0.04022572]
[1740372481481,0.74110936,159.63,159.55,0.04022572]
[1740372482486,0.74110936,159.63,159.58,6.2662]
[1740372482690,0.04287675,159.61,159.49,7.6305]
[1740372482885,0.74110936,159.63,159.59,0.04802156]
[1740372483085,0.04162652,159.57,159.49,7.6305]
[1740372483290,67.66383201,159.58,159.49,7.6305]
[1740372483485,0.04714002,159.55,159.51,0.04667534]
[1740372483693,0.04714002,159.55,159.49,7.6305]
[1740372483891,242.54917022,159.62,159.51,0.04074044]
[1740372484194,41.66917022,159.59,159.49,7.6305]
[1740372484697,41.66917022,159.59,159.51,6.269]
[1740372484993,0.0431782,159.57,159.53,0.04131982]
[1740372485790,41.66917022,159.56,159.53,0.04131982]
[1740372486195,41.66917022,159.56,159.49,7.6305]
[1740372486391,41.66917022,159.56,159.46,3.7224]
[1740372486392,41.66917022,159.53,159.46,3.7224]
[1740372486694,41.66917022,159.56,159.46,3.7224]
[1740372486893,41.66917022,159.56,159.47,3.6413]
[1740372487394,41.71524094,159.53,159.5,0.04478083]
[1740372487592,0.04607072,159.53,159.5,0.04478083]
[1740372491794,41.71548933,159.51,159.43,3.6922]
[1740372492999,0.04596071,159.49,159.45,0.04197554]
[1740372493199,120.10490587,159.54,159.45,0.04197554]
[1740372493897,68.50941654,159.48,159.45,0.04197554]
[1740372494298,68.55707139,159.48,159.45,0.04197554]
[1740372494498,68.55707139,159.48,159.47,6.2706]
[1740372494694,50.62277139,159.48,159.47,6.2706]
[1740372494901,44.64467139,159.48,159.47,6.2706]
[1740372495800,0.04765485,159.48,159.47,6.2706]
[1740372496596,120.99520736,159.53,159.52,6.2686]
[1740372497498,120.99520736,159.53,159.43,45.40768933]
[1740372497702,120.99520736,159.53,159.51,0.04499177]
[1740372497902,120.99520736,159.53,159.43,45.40768933]
[1740372498197,120.99520736,159.53,159.5,0.0422274]
[1740372498399,120.99520736,159.53,159.43,3.6922]
[1740372498594,144.47961415,159.57,159.5,0.0441923]
[1740372498795,0.03566329,159.5,159.46,0.04503761]
[1740372499096,41.71548933,159.54,159.43,3.6922]
[1740372499302,6.329e-05,159.5,159.46,41.75801662]
[1740372499703,102.76412482,159.57,159.49,41.71548933]
[1740372500903,120.99520736,159.53,159.51,0.04203766]
[1740372501107,109.04080736,159.53,159.49,41.71548933]
[1740372501403,109.04080736,159.53,159.52,6.2686]
[1740372501703,171.27354137,159.55,159.52,41.71548933]
[1740372501905,171.27354137,159.55,159.54,6.2678]
[1740372503001,171.27354137,159.55,159.52,41.71548933]
[1740372503002,171.27354137,159.55,159.52,47.98398933]
[1740372503702,7.859,159.61,159.52,41.71548933]
[1740372503897,7.859,159.61,159.52,6.2685]
[1740372504202,7.859,159.61,159.55,0.04256132]
[1740372504507,19.0311761,159.61,159.49,41.71548933]
[1740372504894,7.859,159.61,159.49,41.71548933]
[1740372505101,7.859,159.61,159.52,41.71548933]
[1740372505600,0.0410075,159.58,159.55,0.04656255]
[1740372506595,0.0410075,159.58,159.57,6.2667]
[1740372508108,7.5e-06,159.58,159.57,6.2667]
[1740372508405,9.86,159.68,159.61,6.2649]
[1740372509000,7.286,159.69,159.62,6.2646]
[1740372509403,7.286,159.69,159.64,0.04111175]
[1740372509608,10.9544,159.69,159.64,0.04111175]
[1740372513304,7.2596,159.69,159.64,0.04111175]
[1740372513812,45.52898933,159.76,159.65,6.2632]
[1740372514001,17.4651,159.75,159.6,41.71548933]
[1740372514206,17.4651,159.75,159.69,0.04699944]
[1740372515005,7.6051,159.75,159.69,0.04699944]
[1740372515207,7.6051,159.75,159.71,6.2609]
[1740372515506,104.04475292,159.77,159.69,0.04699944]
[1740372515712,104.04475292,159.77,159.69,41.76248877]
[1740372516014,104.04475292,159.77,159.76,6.2592]
[1740372516713,69.24968614,159.81,159.75,41.75607598]
[1740372517111,69.24968614,159.81,159.75,0.04058665]
[1740372517811,69.24968614,159.81,159.79,6.258]
[1740372518706,69.24968614,159.81,159.8,6.2576]
[1740372519011,104.04475292,159.83,159.78,0.04255817]
[1740372519012,104.04475292,159.83,159.78,41.7580475]
[1740372519207,63.27455292,159.83,159.81,41.71548933]
[1740372519510,53.76775292,159.83,159.82,6.2569]
[1740372520103,171.27354137,159.84,159.81,41.71548933]
[1740372520307,171.27354137,159.84,159.83,6.2565]
[1740372520702,6.253,159.92,159.81,41.71548933]
[1740372520703,3.7789,159.9,159.82,0.04541296]
[1740372521715,6.2548,159.88,159.82,0.04541296]
[1740372521911,3.7789,159.9,159.82,0.04541296]
[1740372522514,45.49438933,159.9,159.82,0.04541296]
[1740372522814,6.256,159.85,159.82,0.04541296]
[1740372523314,45.49438933,159.9,159.79,6.2577]
[1740372523517,3.8819,159.84,159.76,164.0]
[1740372524520,0.04180987,159.82,159.78,0.04677726]
[1740372524707,0.04180987,159.82,159.78,6.30517726]
[1740372525310,0.04180987,159.82,159.8,6.2575]
[1740372525514,0.04180987,159.82,159.78,0.04677726]
[1740372525913,0.04180987,159.82,159.81,6.2573]
[1740372526123,3.8819,159.89,159.79,41.71548933]
[1740372526317,3.7789,159.9,159.82,41.71548933]
[1740372527019,3.6425,159.94,159.86,6.2551]
[1740372527218,3.6425,159.94,159.84,0.04437721]
[1740372527418,9.8948,159.94,159.88,6.2542]
[1740372527619,9.8948,159.94,159.87,0.0410174]
[1740372527820,9.8948,159.94,159.85,41.71548933]
[1740372528020,9.8948,159.94,159.89,6.30109615]
[1740372528523,6.2528,159.93,159.89,0.04699615]
[1740372528722,3.6425,159.94,159.89,0.04699615]
[1740372529917,6.2528,159.93,159.89,0.04699615]
[1740372530118,3.6425,159.94,159.89,0.04699615]
[1740372531121,6.2529,159.93,159.89,0.04699615]
[1740372531623,6.2537,159.9,159.85,6.2556]
[1740372531816,41.71548933,159.93,159.79,41.71548933]
[1740372532017,41.71548933,159.9,159.76,205.71548933]
[1740372532728,41.71548933,159.9,159.76,164.0]
[1740372533021,0.04389866,159.85,159.81,0.04225852]
[1740372533423,6.2564,159.84,159.81,0.04225852]
[1740372533833,13.8586,159.84,159.81,0.04225852]
[1740372534020,7.6022,159.84,159.81,0.04225852]
[1740372534220,7.6022,159.84,159.76,164.0]
[1740372534626,6.2574,159.81,159.77,6.2585]
[1740372535026,7.6022,159.84,159.76,164.0]
[1740372535428,7.6022,159.84,159.78,0.04472494]
[1740372535429,0.04445461,159.82,159.78,0.04472494]
[1740372535933,0.04445461,159.82,159.71,8.68246142]
[1740372536127,41.71548933,159.81,159.71,8.68246142]
[1740372536328,7.6022,159.84,159.77,6.2585]
[1740372536526,7.6022,159.84,159.72,41.71548933]
[1740372536924,7.6022,159.84,159.78,6.2581]
[1740372537125,0.04071785,159.8,159.78,6.2581]
[1740372537324,0.04071785,159.8,159.77,6.2585]
[1740372537528,0.04071785,159.8,159.77,0.04103169]
[1740372538121,0.04071785,159.8,159.79,6.258]
[1740372538526,1.785e-05,159.8,159.79,6.258]
[1740372538733,3.811,159.89,159.85,6.2557]
[1740372539226,3.811,159.89,159.81,41.71548933]
[1740372539734,0.04406398,159.87,159.85,6.2554]
[1740372540035,0.04406398,159.87,159.83,0.04065288]
[1740372540833,0.04406398,159.87,159.84,6.256]
[1740372541036,0.04406398,159.87,159.83,0.04065288]
[1740372541529,0.04406398,159.87,159.86,6.2553]
[1740372541736,0.04406398,159.87,159.83,0.04065288]
[1740372541937,0.04406398,159.87,159.85,6.2556]
[1740372542436,0.04406398,159.87,159.83,6.29705288]
[1740372542637,0.04406398,159.87,159.83,0.04065288]
[1740372542838,0.04406398,159.87,159.84,41.71548933]
[1740372543036,0.04406398,159.87,159.86,6.2553]
[1740372543836,0.04406398,159.87,159.83,0.04065288]
[1740372544037,0.04406398,159.87,159.85,6.2554]
[1740372544336,9.86406398,159.87,159.69,282.92089696]
[1740372544542,6.2574,159.81,159.75,6.2593]
[1740372544740,41.71548933,159.9,159.74,41.71548933]
[1740372544937,9.82,159.89,159.77,41.71548933]
[1740372545538,6.2565,159.84,159.81,0.04440712]
[1740372546239,0.04399714,159.85,159.76,8.68246142]
[1740372546439,41.71548933,159.86,159.76,8.68246142]
[1740372546639,6.2565,159.83,159.76,14.94166142]
[1740372546839,3.8465,159.82,159.76,8.68246142]
[1740372547442,0.04147884,159.81,159.77,0.04710864]
[1740372547841,6.258,159.8,159.77,0.04710864]
[1740372548043,0.04147884,159.81,159.77,0.04710864]
[1740372548444,9.82,159.8,159.7,8.68246142]
[1740372549141,51.53548933,159.8,159.7,8.68246142]
[1740372549350,6.261,159.72,159.7,8.68246142]
[1740372549548,51.53548933,159.8,159.7,8.68246142]
[1740372549845,6.2612,159.71,159.7,8.68246142]
[1740372551947,6.2616,159.7,159.69,0.04122967]
[1740372552149,9.82,159.71,159.64,8.65396593]
[1740372552343,3.8143,159.69,159.64,8.65396593]
[1740372553249,0.04262125,159.68,159.65,0.04473893]
[1740372553749,0.04262125,159.68,159.64,8.65396593]
[1740372554149,6.2635,159.65,159.64,2.68316593]
[1740372554349,6.2635,159.65,159.63,26.08749447]
[1740372554350,0.04262125,159.68,159.63,26.08749447]
[1740372554946,0.04262125,159.68,159.64,0.04718144]
[1740372555249,41.75811058,159.68,159.63,26.08749447]
[1740372555745,41.75811058,159.68,159.58,163.82]
[1740372556049,41.71548933,159.68,159.53,41.71548933]
[1740372556244,6.2658,159.6,159.59,0.04029043]
[1740372556444,6.2658,159.6,159.55,6.2674]
[1740372556645,6.2658,159.6,159.58,0.04355383]
[1740372556847,0.04204746,159.59,159.58,0.04355383]
[1740372558153,6.30794746,159.59,159.58,0.04355383]
[1740372558751,6.267,159.57,159.52,6.2682]
[1740372559147,0.04204746,159.59,159.52,6.2682]
[1740372559853,0.04204746,159.59,159.54,0.04206857]
[1740372560556,6.2672,159.56,159.54,0.04206857]
[1740372561858,0.04204746,159.59,159.54,6.857e-05]
[1740372562758,6.2663,159.58,159.54,6.857e-05]
[1740372563552,0.04204746,159.59,159.54,41.7155579]
[1740372563752,3.9684,159.69,159.57,41.71548933]
[1740372564153,3.6843,159.71,159.6,41.71548933]
[1740372564454,9.84,159.72,159.6,41.71548933]
[1740372564655,3.9815,159.73,159.63,41.71548933]
[1740372564858,7.89e-05,159.68,159.66,41.71548933]
[1740372565160,68.39460529,159.73,159.71,6.261]
[1740372565761,68.39460529,159.73,159.72,6.2608]
[1740372565963,59.69190529,159.73,159.72,6.2608]
[1740372566159,56.74780529,159.73,159.72,6.2608]
[1740372566861,56.74780529,159.73,159.71,0.04758422]
[1740372567862,0.04244925,159.74,159.71,0.04758422]
[1740372569263,0.04244925,159.74,159.65,164.02]
[1740372569466,9.82,159.73,159.6,41.71548933]
[1740372569862,9.82,159.73,159.64,6.2638]
[1740372570059,6.2616,159.7,159.64,6.2638]
[1740372570261,9.82,159.73,159.64,6.2638]
[1740372570558,0.04254496,159.69,159.65,0.04677579]
[1740372571265,9.82,159.77,159.66,41.71548933]
[1740372571865,6.2595,159.76,159.7,6.2614]
[1740372572066,9.82,159.77,159.66,41.71548933]
[1740372572467,0.04615718,159.73,159.72,6.2607]
[1740372574264,5.718e-05,159.73,159.72,6.2607]
[1740372574664,5.718e-05,159.73,159.7,0.04343417]
[1740372574869,5.718e-05,159.73,159.71,6.2611]
[1740372575266,5.718e-05,159.73,159.7,0.04343417]
[1740372575866,6.2612,159.71,159.7,3.417e-05]
[1740372577569,6.2608,159.72,159.7,3.417e-05]
[1740372578873,5.718e-05,159.73,159.71,6.2611]
[1740372579074,5.718e-05,159.73,159.7,3.417e-05]
[1740372579374,6.26045718,159.73,159.7,3.417e-05]
[1740372580070,5.718e-05,159.73,159.7,3.417e-05]
[1740372581778,6.2612,159.71,159.7,3.417e-05]
[1740372582683,73.79482955,159.71,159.7,3.417e-05]
[1740372584387,67.53362955,159.68,159.53,67.53362955]
[1740372584677,67.53362955,159.65,159.52,163.96]
[1740372584883,3.8939,159.64,159.52,163.96]
[1740372585279,3.8635,159.63,159.54,6.2676]
[1740372585479,6.2662,159.59,159.56,0.04274082]
[1740372585978,0.04128583,159.6,159.56,0.04274082]
[1740372586484,0.04128583,159.6,159.59,6.2659]
[1740372586679,3.8939,159.69,159.56,67.57637037]
[1740372586875,115.62793668,159.67,159.56,67.53362955]
[1740372587079,6.2636,159.65,159.56,67.53362955]
[1740372587679,6.2644,159.63,159.56,67.53362955]
[1740372587885,0.04271955,159.62,159.59,0.0446157]
[1740372588280,6.30781955,159.62,159.59,0.0446157]
[1740372588880,0.04271955,159.62,159.59,0.0446157]
[1740372589081,0.04271955,159.62,159.61,6.2651]
[1740372591985,0.04271955,159.62,159.6,6.2654]
[1740372593188,0.04271955,159.62,159.59,0.0446157]
[1740372593387,0.04271955,159.62,159.6,6.2652]
[1740372593783,0.04271955,159.62,159.61,6.2651]
[1740372594485,0.04271955,159.62,159.59,0.0446157]
[1740372595087,6.2655,159.6,159.59,0.0446157]
[1740372595289,0.04271955,159.62,159.54,6.2675]
[1740372595485,67.53362955,159.62,159.54,6.2675]
[1740372595685,6.2666,159.58,159.54,6.2675]
[1740372595890,41.66932261,159.62,159.54,6.2675]
[1740372596491,0.04515196,159.6,159.56,6.31411342]
[1740372596991,0.04515196,159.6,159.56,0.04711342]
[1740372597890,0.04515196,159.6,159.57,6.2664]
[1740372598192,0.04515196,159.6,159.56,0.04711342]
[1740372598583,0.04515196,159.6,159.57,6.2664]
[1740372599185,0.04515196,159.6,159.56,0.04711342]
[1740372599390,0.04515196,159.6,159.58,6.2661]
[1740372599789,0.04515196,159.6,159.59,6.2659]
[1740372599988,69.03847216,159.66,159.56,41.71643603]
[1740372600192,69.03847216,159.66,159.56,41.66932261]
[1740372600692,75.30187216,159.66,159.62,6.2647]
[1740372600889,3.7891,159.67,159.56,41.66932261]
[1740372601286,0.03947772,159.63,159.6,0.0462409]
[1740372601990,0.03947772,159.63,159.62,6.2647]
[1740372602189,69.03847216,159.69,159.6,0.0462409]
[1740372603191,0.04088457,159.66,159.6,0.0462409]
[1740372603390,0.04088457,159.66,159.57,164.04]
[1740372603591,0.04088457,159.66,159.61,0.04494523]
[1740372604394,0.04088457,159.66,159.61,6.31004523]
[1740372604891,6.2637,159.65,159.61,6.31004523]
[1740372605689,0.04088457,159.66,159.61,0.04494523]
[1740372605890,0.04088457,159.66,159.57,164.04]
[1740372605891,51.51020718,159.66,159.57,164.04]
[1740372606091,51.51020718,159.66,159.5,54.20752261]
[1740372606291,51.46932261,159.66,159.5,54.20752261]
[1740372606490,51.46932261,159.66,159.5,41.66932261]
[1740372607089,6.2662,159.59,159.56,0.04411908]
[1740372607296,0.03975718,159.6,159.48,164.04]
[1740372607590,6.2667,159.57,159.52,6.2684]
[1740372607797,0.04188853,159.56,159.52,0.03985658]
[1740372608096,0.04188853,159.56,159.52,0.0436141]
[1740372608789,3.69288853,159.56,159.52,0.0436141]
[1740372609594,3.69288853,159.56,159.49,6.2698]
[1740372610394,6.2681,159.54,159.49,6.2698]
[1740372610690,41.66932261,159.54,159.46,6.2709]
[1740372610894,6.2683,159.53,159.5,0.0448892]
[1740372611100,0.0427289,159.52,159.41,45.62352261]
[1740372611298,3.9529,159.55,159.5,0.04622445]
[1740372611491,0.04383835,159.48,159.41,45.62352261]
[1740372611691,3.9529,159.55,159.44,41.66932261]
[1740372611892,9.8,159.62,159.42,9.8]
[1740372612093,9.8,159.62,159.53,41.66932261]
[1740372612994,0.04151065,159.59,159.55,0.04561741]
[1740372613899,0.04151065,159.59,159.58,6.2663]
[1740372616703,11.3204,159.66,159.65,6.2635]
[1740372616903,69.03847216,159.67,159.58,67.66773827]
[1740372617795,0.04749094,159.64,159.61,0.04235509]
[1740372618499,0.04749094,159.64,159.63,6.2643]
[1740372618805,0.04749094,159.64,159.61,0.04235509]
[1740372619006,0.04749094,159.64,159.62,6.2644]
[1740372619201,0.04749094,159.64,159.61,0.04235509]
[1740372619602,9.094e-05,159.64,159.63,6.2643]
[1740372621603,9.094e-05,159.64,159.61,0.04235509]
[1740372622201,9.094e-05,159.64,159.53,3.7517]
[1740372622404,7.5058,159.66,159.53,3.7517]
[1740372622609,7.5058,159.66,159.56,6.2668]
[1740372622805,6.2654,159.61,159.53,3.7517]
[1740372623014,7.5058,159.66,159.53,3.7517]
[1740372623213,0.04213536,159.61,159.58,0.04383344]
[1740372623509,6.266,159.59,159.58,0.04383344]
[1740372623917,0.04213536,159.61,159.58,0.04383344]
[1740372624308,6.2658,159.6,159.58,0.04383344]
[1740372624715,0.04213536,159.61,159.58,0.04383344]
[1740372625512,0.04213536,159.61,159.6,6.2655]
[1740372628515,3.536e-05,159.61,159.6,6.2655]
[1740372629318,3.536e-05,159.61,159.6,73.93323827]
[1740372634623,3.536e-05,159.61,159.6,6.2655]
[1740372637029,6.26523536,159.61,159.58,6.31003344]
[1740372637528,3.536e-05,159.61,159.58,0.04383344]
[1740372637729,3.7071,159.6,159.58,0.04383344]
[1740372638028,3.7071,159.6,159.52,164.06]
[1740372638228,6.2659,159.59,159.55,6.2671]
[1740372638529,3.7071,159.6,159.52,164.06]
[1740372639232,0.04130905,159.58,159.54,0.04048731]
[1740372639434,0.04130905,159.58,159.56,6.2668]
[1740372642326,0.04130905,159.58,159.57,6.2667]
[1740372642524,102.01883668,159.68,159.55,41.62563175]
[1740372642720,109.28783668,159.68,159.58,41.62563175]
[1740372642927,109.28783668,159.68,159.62,6.2644]
[1740372643130,109.28783668,159.68,159.58,41.62563175]
[1740372643326,3.6105,159.65,159.64,6.2639]
[1740372644224,0.04083507,159.66,159.63,0.04481107]
[1740372644428,0.04083507,159.66,159.64,6.2639]
[1740372644733,0.04083507,159.66,159.63,0.04481107]
[1740372644933,0.04083507,159.66,159.65,6.2635]
[1740372646125,69.03847216,159.69,159.68,6.2623]
[1740372647236,3.976,159.74,159.64,41.62563175]
[1740372647431,3.976,159.74,159.71,6.2608]
[1740372647926,3.976,159.74,159.72,6.2607]
[1740372647927,4.02193032,159.74,159.72,6.2607]
[1740372649035,0.04593032,159.74,159.73,6.2604]
[1740372651136,0.04593032,159.74,159.72,6.2608]
[1740372651429,0.04593032,159.74,159.71,0.04464973]
[1740372651630,0.04593032,159.74,159.65,164.0]
[1740372652845,6.2612,159.71,159.68,0.04235871]
[1740372654238,0.04593032,159.74,159.68,0.04235871]
[1740372656037,6.2611,159.72,159.68,0.04235871]
[1740372656341,0.04593032,159.74,159.69,6.2617]
[1740372656541,6.2607,159.73,159.69,6.2617]
[1740372656840,0.04593032,159.74,159.68,0.04235871]
[1740372657144,0.04593032,159.74,159.73,6.2604]
[1740372659046,0.04593032,159.74,159.72,0.04278002]
[1740372659249,0.04593032,159.74,159.65,164.0]
[1740372659745,6.2612,159.71,159.68,6.2621]
[1740372659946,0.04593032,159.74,159.65,164.0]
[1740372660142,6.2619,159.7,159.66,6.2629]
[1740372660347,6.2619,159.7,159.68,0.04239888]
[1740372660543,0.04281699,159.71,159.68,0.04239888]
[1740372660750,0.04281699,159.71,159.6,3.9329]
[1740372660944,41.62563175,159.75,159.6,3.9329]
[1740372661140,1.15093792,159.74,159.6,3.9329]
[1740372661349,41.62563175,159.71,159.56,163.94]
[1740372661647,3.7331,159.7,159.56,163.94]
[1740372661847,0.04750952,159.66,159.65,6.2632]
[1740372662743,0.04750952,159.66,159.56,163.94]
[1740372662948,51.40563175,159.68,159.56,163.94]
[1740372663143,51.40563175,159.68,159.62,6.2644]
[1740372663344,9.78,159.68,159.62,6.2644]
[1740372663543,9.78,159.68,159.56,163.94]
[1740372664051,0.04200471,159.64,159.6,0.0398952]
[1740372664351,0.04200471,159.64,159.63,6.2643]
[1740372664743,0.04200471,159.64,159.6,0.0398952]
[1740372664944,0.04200471,159.64,159.61,6.2648]
[1740372665144,0.04200471,159.64,159.6,0.0398952]
[1740372665547,0.04200471,159.64,159.61,6.265]
[1740372665754,0.04200471,159.64,159.6,0.0398952]
[1740372665947,0.04200471,159.64,159.56,163.94]
[1740372666656,6.2659,159.59,159.51,41.62563175]
[1740372666852,41.62563175,159.65,159.51,41.62563175]
[1740372667050,0.04544206,159.57,159.53,0.03972873]
[1740372667351,41.62563175,159.65,159.53,0.04282375]
[1740372667549,0.04413301,159.57,159.48,41.62563175]
[1740372667755,6.2662,159.59,159.57,0.04370219]
[1740372667944,6.2662,159.59,159.55,6.2674]
[1740372668150,0.04292182,159.6,159.56,0.04119367]
[1740372668348,3.9232,159.61,159.47,163.98]
[1740372668349,191.0,159.64,159.54,41.62563175]
[1740372668642,0.04261723,159.6,159.57,6.2664]
[1740372668842,6.265,159.62,159.51,41.62563175]
[1740372669046,0.04557659,159.6,159.57,0.04459692]
[1740372669256,0.04557659,159.6,159.59,6.2659]
[1740372670552,7.659e-05,159.6,159.59,6.2659]
[1740372671254,7.659e-05,159.6,159.57,41.67022867]
[1740372671255,69.03847216,159.64,159.63,6.2643]
[1740372672154,36.69447216,159.64,159.63,6.2643]
[1740372672355,17.28967216,159.64,159.63,6.2643]
[1740372672557,88.92053855,159.65,159.64,6.2639]
[1740372672955,88.92053855,159.65,159.62,0.04609914]
[1740372673849,0.04682971,159.65,159.62,0.04609914]
[1740372674052,6.31062971,159.65,159.62,0.04609914]
[1740372674252,0.04682971,159.65,159.62,0.04609914]
[1740372674454,0.04682971,159.65,159.58,164.02]
[1740372674651,6.2648,159.62,159.58,164.02]
[1740372674852,7.5195,159.64,159.58,164.02]